[Event "XIII Mediterranean Championship 2023"]
[Site "Castell-Platja d Aro"]
[Date "2023.11.07"]
[Round "5.8"]
[White "Ayats Llobera, Gerard"]
[Black "Guillo Longares, Cecilia"]
[Result "1-0"]
[ECO "D91"]
[WhiteElo "2442"]
[BlackElo "2065"]
[Annotator "RC"]
[PlyCount "61"]
[EventDate "2023.10.26"]
[EventType "swiss"]
[EventCountry "ESP"]
[SourceTitle "playchess.com"]
[Source "ChessBase"]
[SourceQuality "1"]
[TimeControl "5400+30"]

1. d4 {[%emt 0:00:55]} Nf6 {[%emt 0:00:06]} 2. c4 {[%emt 0:00:07]} g6 {[%emt 0:00:10]} 3. Nc3 {[%emt 0:00:06]} d5 {[%emt 0:02:46]} 4. Bg5 {[%emt 0:06:30]} Bg7 {[%emt 0:01:26]} 5. Nf3 {[%emt 0:00:23]} Ne4 {[%emt 0:00:05]} 6. Bf4 {[%emt 0:01:02]} Nxc3 {[%emt 0:05:55]} 7. bxc3 {[%emt 0:00:07]} c5 {[%emt 0:00:08]} 8. e3 {[%emt 0:01:37]} Nc6 {[%emt 0:05:01]} 9. cxd5 {[%emt 0:03:33]} Qxd5 {[%emt 0:00:28]} 10. Be2 {[%emt 0:00:11]} cxd4 {[%emt 0:06:08]} 11. cxd4 {[%emt 0:00:18]} Qa5+ {[%emt 0:00:11]} 12. Nd2 {[%emt 0:02:32]} e5 {[%emt 0:01:13]} 13. dxe5 {[%emt 0:00:45]} Nxe5 {[%emt 0:00:07]} 14. O-O {[%emt 0:00:33]} O-O {[%emt 0:00:49]} 15. Nb3 {[%emt 0:03:50]} Qa3 {[%emt 0:06:37]} 16. Qc1 {[%emt 0:02:58]} Qe7 {[%emt 0:01:43]} 17. Nd4 {[%emt 0:05:30]} Be6 {[%emt 0:12:28]} 18. Nxe6 {[%emt 0:03:26]} Rfc8 {[%emt 0:03:13]} 19. Qb1 {[%emt 0:03:42]} fxe6 {[%emt 0:13:34]} 20. Qb3 {[%emt 0:00:24]} Rc6 {[%emt 0:00:33]} 21. Rab1 {[%emt 0:01:49]} Rb6 {[%emt 0:02:21]} 22. Qa4 {[%emt 0:01:05]} Rxb1 {[%emt 0:12:33]} 23. Rxb1 {[%emt 0:00:12]} a6 {[%emt 0:00:32]} 24. Qe4 {[%emt 0:01:10]} Nc6 {[%emt 0:00:15]} 25. Bc4 {[%emt 0:00:51]} Nd8 {[%emt 0:01:39]} 26. Rb6 {[%emt 0:08:22]} Kh8 {[%emt 0:01:48]} 27. Bxe6 {[%emt 0:02:57]} Rc8 {[%emt 0:00:26]} 28. h3 {[%emt 0:00:32]} Rc1+ {[%emt 0:04:39]} 29. Kh2 {[%emt 0:00:07]} Qc5 {[%emt 0:01:15]} 30. Bb3 {[%emt 0:02:47]} Qf8 {[%emt 0:03:45]} 31. Bd6 {[%emt 0:00:16]} 1-0

[Event "XIII Mediterranean Championship 2023"]
[Site "Castell-Platja d Aro"]
[Date "2023.11.07"]
[Round "5.9"]
[White "Lever, Erwan"]
[Black "Gilevych, Artem"]
[Result "1/2-1/2"]
[ECO "E06"]
[WhiteElo "2184"]
[BlackElo "2416"]
[Annotator "RC"]
[PlyCount "61"]
[EventDate "2023.10.26"]
[EventType "swiss"]
[EventCountry "ESP"]
[SourceTitle "playchess.com"]
[Source "ChessBase"]
[SourceQuality "1"]
[TimeControl "5400+30"]

1. d4 {[%emt 0:00:03]} d5 {[%emt 0:00:45]} 2. Nf3 {[%emt 0:00:08]} Nf6 {[%emt 0:00:38]} 3. g3 {[%emt 0:00:07]} e6 {[%emt 0:01:58]} 4. c4 {[%emt 0:00:16]} Be7 {[%emt 0:00:12]} 5. Bg2 {[%emt 0:00:05]} O-O {[%emt 0:00:06]} 6. Nc3 {[%emt 0:00:04]} c6 {[%emt 0:02:18]} 7. O-O {[%emt 0:00:20]} b6 {[%emt 0:01:07]} 8. b3 {[%emt 0:04:58]} Ba6 {[%emt 0:01:00]} 9. Ne5 {[%emt 0:01:29]} Nfd7 {[%emt 0:04:28]} 10. cxd5 {[%emt 0:09:02]} cxd5 {[%emt 0:03:52]} 11. Nxd5 {[%emt 0:05:12]} exd5 {[%emt 0:00:09]} 12. Nxf7 {[%emt 0:01:14]} Rxf7 {[%emt 0:10:58]} 13. Bxd5 {[%emt 0:00:16]} Bb5 {[%emt 0:15:24]} 14. Bxa8 {[%emt 0:00:41]} Nc6 {[%emt 0:00:07]} 15. Bxc6 {[%emt 0:08:04]} Bxc6 {[%emt 0:00:01]} 16. f3 {[%emt 0:00:48]} Nf8 {[%emt 0:06:52]} 17. Bb2 {[%emt 0:05:29]} h5 {[%emt 0:01:54]} 18. e4 {[%emt 0:04:41]} h4 {[%emt 0:00:20]} 19. d5 {[%emt 0:00:50]} Bb5 {[%emt 0:04:27]} 20. Rf2 {[%emt 0:01:59]} Nh7 {[%emt 0:08:21]} 21. f4 {[%emt 0:14:46]} Nf6 {[%emt 0:00:06]} 22. d6 {[%emt 0:03:37]} Qxd6 {[%emt 0:00:10]} 23. Qxd6 {[%emt 0:00:47]} Bxd6 {[%emt 0:00:01]} 24. e5 {[%emt 0:00:23]} Bc5 {[%emt 0:01:30]} 25. exf6 {[%emt 0:00:12]} Rd7 {[%emt 0:04:14]} 26. Bc3 {[%emt 0:06:14]} Rd3 {[%emt 0:17:14]} 27. Be1 {[%emt 0:00:16]} hxg3 {[%emt 0:03:56]} 28. hxg3 {[%emt 0:00:06]} Rxg3+ {[%emt 0:00:31]} 29. Kh2 {[%emt 0:00:06]} Bxf2 {[%emt 0:00:43]} 30. Bxf2 {[%emt 0:00:07]} Rf3 {[%emt 0:00:25]} 31. Bg3 {[%emt 0:00:59]} 1/2-1/2

[Event "XIII Mediterranean Championship 2023"]
[Site "Castell-Platja d Aro"]
[Date "2023.11.07"]
[Round "5.10"]
[White "Lacasa Diaz, Jose Antonio"]
[Black "Domene Mulyukov, Alexander"]
[Result "1/2-1/2"]
[ECO "C00"]
[WhiteElo "2353"]
[BlackElo "2198"]
[Annotator "RC"]
[PlyCount "170"]
[EventDate "2023.10.26"]
[EventType "swiss"]
[EventCountry "ESP"]
[SourceTitle "playchess.com"]
[Source "ChessBase"]
[SourceQuality "1"]
[TimeControl "5400+30"]

1. e4 {[%emt 0:00:04]} c5 {[%emt 0:06:09]} 2. Nf3 {[%emt 0:00:11]} e6 {[%emt 0:00:10]} 3. g3 {[%emt 0:00:16]} Nc6 {[%emt 0:00:06]} 4. Bg2 {[%emt 0:00:06]} Nf6 {[%emt 0:00:12]} 5. d3 {[%emt 0:00:31]} d5 {[%emt 0:01:09]} 6. Qe2 {[%emt 0:00:12]} Be7 {[%emt 0:01:05]} 7. O-O {[%emt 0:00:12]} O-O {[%emt 0:02:01]} 8. e5 {[%emt 0:00:25]} Nd7 {[%emt 0:00:04]} 9. c4 {[%emt 0:00:11]} d4 {[%emt 0:06:41]} 10. h4 {[%emt 0:01:05]} a6 {[%emt 0:00:38]} 11. Bf4 {[%emt 0:01:36]} h6 {[%emt 0:07:31]} 12. h5 {[%emt 0:13:33]} Re8 {[%emt 0:05:03]} 13. Nbd2 {[%emt 0:04:57]} Nf8 {[%emt 0:16:13]} 14. Nh2 {[%emt 0:10:14]} Nh7 {[%emt 0:03:50]} 15. Ng4 {[%emt 0:01:16]} Kh8 {[%emt 0:06:47]} 16. Bxc6 {[%emt 0:18:42]} bxc6 {[%emt 0:00:31]} 17. Ne4 {[%emt 0:00:11]} Bd7 {[%emt 0:04:04]} 18. Qd2 {[%emt 0:03:35]} Rf8 {[%emt 0:08:10]} 19. Kg2 {[%emt 0:01:20]} Ng5 {[%emt 0:06:15]} 20. Bxg5 {[%emt 0:01:06]} Bxg5 {[%emt 0:00:29]} 21. Nxg5 {[%emt 0:00:26]} Qxg5 {[%emt 0:00:15]} 22. Qxg5 {[%emt 0:00:17]} hxg5 {[%emt 0:00:12]} 23. h6 {[%emt 0:00:38]} f5 {[%emt 0:10:47]} 24. hxg7+ {[%emt 0:01:18]} Kxg7 {[%emt 0:00:11]} 25. Nf6 {[%emt 0:00:11]} Be8 {[%emt 0:00:31]} 26. Rh1 {[%emt 0:00:24]} Bg6 {[%emt 0:00:19]} 27. Nd7 {[%emt 0:00:54]} f4 {[%emt 0:01:12]} 28. Nxc5 {[%emt 0:02:15]} f3+ {[%emt 0:00:15]} 29. Kf1 {[%emt 0:01:22]} Rh8 {[%emt 0:03:30]} 30. Nxe6+ {[%emt 0:03:11]} Kf7 {[%emt 0:03:55]} 31. Nxg5+ {[%emt 0:00:08]} Ke7 {[%emt 0:00:05]} 32. Rxh8 {[%emt 0:02:24]} Bxd3+ {[%emt 0:02:42]} 33. Ke1 {[%emt 0:05:46]} Rxh8 {[%emt 0:00:14]} 34. Kd2 {[%emt 0:00:05]} Be2 {[%emt 0:01:34]} 35. Ne4 {[%emt 0:06:24]} Rh2 {[%emt 0:04:38]} 36. Re1 {[%emt 0:01:18]} Bxc4 {[%emt 0:00:27]} 37. b3 {[%emt 0:01:30]} Be6 {[%emt 0:00:34]} 38. Kd3 {[%emt 0:00:43]} c5 {[%emt 0:00:22]} 39. Nxc5 {[%emt 0:00:25]} Rxf2 {[%emt 0:00:36]} 40. Kxd4 {[%emt 0:00:30]} Rxa2 {[%emt 0:00:22]} 41. Rf1 {[%emt 0:05:29]} f2 {[%emt 0:00:39]} 42. Nd3 {[%emt 0:01:54]} Bxb3 {[%emt 0:00:29]} 43. Rxf2 {[%emt 0:00:05]} Ra4+ {[%emt 0:00:11]} 44. Ke3 {[%emt 0:00:44]} Bf7 {[%emt 0:00:50]} 45. Rb2 {[%emt 0:00:27]} Bd5 {[%emt 0:00:16]} 46. Rb4 {[%emt 0:00:29]} Ra3 {[%emt 0:00:32]} 47. Kd4 {[%emt 0:00:09]} a5 {[%emt 0:00:41]} 48. Rb6 {[%emt 0:00:59]} Bg2 {[%emt 0:00:24]} 49. Rb2 {[%emt 0:01:35]} Ba8 {[%emt 0:00:37]} 50. Rh2 {[%emt 0:00:48]} Ra4+ {[%emt 0:00:27]} 51. Kc5 {[%emt 0:00:30]} Ke6 {[%emt 0:00:33]} 52. Rh6+ {[%emt 0:00:18]} Kf5 {[%emt 0:00:30]} 53. Rf6+ {[%emt 0:00:21]} Kg5 {[%emt 0:00:05]} 54. Rf8 {[%emt 0:01:45]} Bb7 {[%emt 0:00:55]} 55. e6 {[%emt 0:01:32]} Re4 {[%emt 0:00:09]} 56. Kd6 {[%emt 0:00:37]} Rd4+ {[%emt 0:00:11]} 57. Kc7 {[%emt 0:00:04]} Rxd3 {[%emt 0:01:10]} 58. e7 {[%emt 0:00:29]} Re3 {[%emt 0:00:14]} 59. e8=Q {[%emt 0:00:05]} Rxe8 {[%emt 0:00:06]} 60. Rxe8 {[%emt 0:00:03]} Bf3 {[%emt 0:00:08]} 61. Kb6 {[%emt 0:03:30]} Kg4 {[%emt 0:01:31]} 62. Rg8+ {[%emt 0:00:05]} Kh3 {[%emt 0:00:11]} 63. Kxa5 {[%emt 0:00:10]} Bg4 {[%emt 0:00:19]} 64. Kb4 {[%emt 0:00:05]} Kxg3 {[%emt 0:00:17]} 65. Kc3 {[%emt 0:00:05]} Kf4 {[%emt 0:00:22]} 66. Kd4 {[%emt 0:00:13]} Kf5 {[%emt 0:00:57]} 67. Rf8+ {[%emt 0:00:34]} Ke6 {[%emt 0:00:35]} 68. Rh8 {[%emt 0:00:11]} Bf3 {[%emt 0:00:20]} 69. Re8+ {[%emt 0:00:16]} Kd7 {[%emt 0:00:37]} 70. Rf8 {[%emt 0:00:10]} Bd1 {[%emt 0:00:27]} 71. Rf6 {[%emt 0:00:10]} Bb3 {[%emt 0:00:16]} 72. Ke5 {[%emt 0:00:20]} Ba2 {[%emt 0:00:29]} 73. Rd6+ {[%emt 0:00:31]} Ke7 {[%emt 0:01:04]} 74. Ra6 {[%emt 0:00:11]} Bb3 {[%emt 0:00:11]} 75. Ra7+ {[%emt 0:00:07]} Ke8 {[%emt 0:00:18]} 76. Kd6 {[%emt 0:00:28]} Bc4 {[%emt 0:00:12]} 77. Re7+ {[%emt 0:00:46]} Kf8 {[%emt 0:00:32]} 78. Rc7 {[%emt 0:00:12]} Bb3 {[%emt 0:00:21]} 79. Rb7 {[%emt 0:00:11]} Bc4 {[%emt 0:01:00]} 80. Rb4 {[%emt 0:00:14]} Ba2 {[%emt 0:00:42]} 81. Rf4+ {[%emt 0:01:07]} Ke8 {[%emt 0:00:14]} 82. Rf1 {[%emt 0:00:24]} Bb3 {[%emt 0:00:15]} 83. Rf2 {[%emt 0:00:28]} Bc4 {[%emt 0:00:10]} 84. Kc5 {[%emt 0:00:18]} Bb3 {[%emt 0:00:28]} 85. Rf8+ {[%emt 0:00:21]} Kxf8 {[%emt 0:00:11]} 1/2-1/2

[Event "XIII Mediterranean Championship 2023"]
[Site "Castell-Platja d Aro"]
[Date "2023.11.07"]
[Round "5.11"]
[White "Banos, Oscar"]
[Black "Jimenez Ruano, Adrian"]
[Result "0-1"]
[ECO "D05"]
[WhiteElo "2188"]
[BlackElo "2281"]
[Annotator "RC"]
[PlyCount "70"]
[EventDate "2023.10.26"]
[EventType "swiss"]
[EventCountry "ESP"]
[SourceTitle "playchess.com"]
[Source "ChessBase"]
[SourceQuality "1"]
[TimeControl "5400+30"]

1. Nf3 {[%emt 0:00:30]} Nf6 {[%emt 0:00:18]} 2. d4 {[%emt 0:00:29]} d5 {[%emt 0:01:27]} 3. e3 {[%emt 0:00:19]} e6 {[%emt 0:01:46]} 4. Bd3 {[%emt 0:01:59]} c5 {[%emt 0:02:18]} 5. b3 {[%emt 0:01:17]} Nbd7 {[%emt 0:01:26]} 6. Nbd2 {[%emt 0:04:03]} Bd6 {[%emt 0:00:29]} 7. Bb2 {[%emt 0:00:22]} Qc7 {[%emt 0:15:23]} 8. c4 {[%emt 0:06:02]} cxd4 {[%emt 0:02:07]} 9. exd4 {[%emt 0:00:49]} dxc4 {[%emt 0:12:02]} 10. bxc4 {[%emt 0:00:59]} b6 {[%emt 0:02:23]} 11. O-O {[%emt 0:00:40]} O-O {[%emt 0:00:35]} 12. Qe2 {[%emt 0:05:31]} Bb7 {[%emt 0:00:30]} 13. Rac1 {[%emt 0:03:35]} Rac8 {[%emt 0:02:10]} 14. Rfe1 {[%emt 0:09:13]} Rfe8 {[%emt 0:01:19]} 15. Ne5 {[%emt 0:00:36]} Nf8 {[%emt 0:12:34]} 16. f4 {[%emt 0:03:49]} Qe7 {[%emt 0:08:43]} 17. Rc2 {[%emt 0:05:22]} Ba8 {[%emt 0:09:11]} 18. Rf1 {[%emt 0:07:05]} Ba3 {[%emt 0:02:39]} 19. Ba1 {[%emt 0:03:18]} Red8 {[%emt 0:01:17]} 20. f5 {[%emt 0:06:10]} Re8 {[%emt 0:04:07]} 21. fxe6 {[%emt 0:03:01]} Nxe6 {[%emt 0:00:11]} 22. Kh1 {[%emt 0:09:33]} Bd6 {[%emt 0:02:30]} 23. Ng4 {[%emt 0:10:14]} Nf4 {[%emt 0:04:18]} 24. Qxe7 {[%emt 0:03:05]} Rxe7 {[%emt 0:00:30]} 25. Nxf6+ {[%emt 0:00:36]} gxf6 {[%emt 0:00:01]} 26. Bf5 {[%emt 0:00:13]} Bxg2+ {[%emt 0:00:54]} 27. Kg1 {[%emt 0:00:06]} Bxf1 {[%emt 0:00:03]} 28. Nxf1 {[%emt 0:02:14]} Rce8 {[%emt 0:00:44]} 29. c5 {[%emt 0:00:22]} bxc5 {[%emt 0:00:15]} 30. dxc5 {[%emt 0:00:06]} Be5 {[%emt 0:00:02]} 31. Bxe5 {[%emt 0:00:31]} Rxe5 {[%emt 0:01:17]} 32. Bd7 {[%emt 0:00:22]} Rg5+ {[%emt 0:00:25]} 33. Ng3 {[%emt 0:01:43]} Re1+ {[%emt 0:00:13]} 34. Kf2 {[%emt 0:01:08]} Nd3+ {[%emt 0:00:04]} 35. Kg2 {[%emt 0:00:18]} Rxc5 {[%emt 0:00:48]} 0-1

[Event "XIII Mediterranean Championship 2023"]
[Site "Castell-Platja d Aro"]
[Date "2023.11.07"]
[Round "5.12"]
[White "Rojano Alfonso, Carlos"]
[Black "Makka, Ioulia"]
[Result "1-0"]
[ECO "A03"]
[WhiteElo "2207"]
[BlackElo "1900"]
[Annotator "RC"]
[PlyCount "77"]
[EventDate "2023.10.26"]
[EventType "swiss"]
[EventCountry "ESP"]
[SourceTitle "playchess.com"]
[Source "ChessBase"]
[SourceQuality "1"]
[TimeControl "5400+30"]

1. f4 {[%emt 0:00:03]} Nf6 {[%emt 0:03:08]} 2. Nf3 {[%emt 0:00:06]} g6 {[%emt 0:01:51]} 3. d3 {[%emt 0:00:07]} d5 {[%emt 0:00:42]} 4. e3 {[%emt 0:00:06]} Bg7 {[%emt 0:00:59]} 5. Be2 {[%emt 0:00:15]} c5 {[%emt 0:01:57]} 6. O-O {[%emt 0:00:14]} O-O {[%emt 0:02:10]} 7. Qe1 {[%emt 0:00:24]} Nc6 {[%emt 0:03:56]} 8. Kh1 {[%emt 0:02:38]} Qc7 {[%emt 0:01:24]} 9. Qh4 {[%emt 0:05:27]} b6 {[%emt 0:08:45]} 10. Nbd2 {[%emt 0:05:14]} Nb4 {[%emt 0:15:14]} 11. Bd1 {[%emt 0:00:26]} a5 {[%emt 0:04:51]} 12. Ne5 {[%emt 0:05:22]} Ne8 {[%emt 0:04:00]} 13. Ndf3 {[%emt 0:05:06]} f6 {[%emt 0:02:57]} 14. Ng4 {[%emt 0:02:00]} h5 {[%emt 0:04:37]} 15. Nf2 {[%emt 0:00:38]} f5 {[%emt 0:07:34]} 16. Qg3 {[%emt 0:04:34]} Qd6 {[%emt 0:06:02]} 17. Nh4 {[%emt 0:07:30]} Kh7 {[%emt 0:02:07]} 18. Nh3 {[%emt 0:03:16]} Nc6 {[%emt 0:03:24]} 19. Ng5+ {[%emt 0:02:58]} Kg8 {[%emt 0:00:33]} 20. Ngf3 {[%emt 0:01:13]} Rf6 {[%emt 0:01:59]} 21. Ne5 {[%emt 0:03:14]} Kh7 {[%emt 0:00:09]} 22. b3 {[%emt 0:03:23]} Re6 {[%emt 0:01:23]} 23. Nf7 {[%emt 0:01:41]} Bxa1 {[%emt 0:03:27]} 24. Nxd6 {[%emt 0:00:51]} Nxd6 {[%emt 0:00:45]} 25. Bf3 {[%emt 0:01:14]} Bb7 {[%emt 0:03:22]} 26. Bxd5 {[%emt 0:00:37]} Rf6 {[%emt 0:00:08]} 27. Bd2 {[%emt 0:00:45]} Bb2 {[%emt 0:00:33]} 28. Rb1 {[%emt 0:00:16]} Ba3 {[%emt 0:02:13]} 29. Bc3 {[%emt 0:00:54]} Raf8 {[%emt 0:05:01]} 30. Bxf6 {[%emt 0:01:29]} Rxf6 {[%emt 0:00:08]} 31. e4 {[%emt 0:00:40]} fxe4 {[%emt 0:05:24]} 32. dxe4 {[%emt 0:00:09]} Nd4 {[%emt 0:02:58]} 33. Bxb7 {[%emt 0:00:33]} Nxb7 {[%emt 0:00:20]} 34. f5 {[%emt 0:00:37]} Nd6 {[%emt 0:01:52]} 35. fxg6+ {[%emt 0:01:04]} Kg8 {[%emt 0:00:34]} 36. Qe3 {[%emt 0:00:54]} Kg7 {[%emt 0:01:12]} 37. e5 {[%emt 0:02:06]} Re6 {[%emt 0:00:32]} 38. Qg5 {[%emt 0:00:05]} Ne4 {[%emt 0:00:40]} 39. Qf4 {[%emt 0:00:11]} 1-0

[Event "XIII Mediterranean Championship 2023"]
[Site "Castell-Platja d Aro"]
[Date "2023.11.07"]
[Round "5.13"]
[White "Menac Comas, Joan Ramon"]
[Black "Ventura Bolet, Alexandre"]
[Result "0-1"]
[ECO "B03"]
[WhiteElo "2044"]
[BlackElo "2238"]
[Annotator "RC"]
[PlyCount "60"]
[EventDate "2023.10.26"]
[EventType "swiss"]
[EventCountry "ESP"]
[SourceTitle "playchess.com"]
[Source "ChessBase"]
[SourceQuality "1"]
[TimeControl "5400+30"]

1. e4 {[%emt 0:00:02]} Nf6 {[%emt 0:00:10]} 2. e5 {[%emt 0:00:07]} Nd5 {[%emt 0:00:04]} 3. c4 {[%emt 0:00:08]} Nb6 {[%emt 0:00:05]} 4. d4 {[%emt 0:00:06]} d6 {[%emt 0:00:04]} 5. exd6 {[%emt 0:00:10]} cxd6 {[%emt 0:00:25]} 6. Nc3 {[%emt 0:00:16]} g6 {[%emt 0:00:07]} 7. a4 {[%emt 0:00:08]} Bg7 {[%emt 0:07:08]} 8. a5 {[%emt 0:00:35]} N6d7 {[%emt 0:00:08]} 9. Ra3 {[%emt 0:00:08]} O-O {[%emt 0:02:28]} 10. Nf3 {[%emt 0:02:26]} e5 {[%emt 0:17:02]} 11. Be2 {[%emt 0:06:37]} Nc6 {[%emt 0:13:27]} 12. d5 {[%emt 0:05:48]} Ne7 {[%emt 0:00:12]} 13. O-O {[%emt 0:11:40]} h6 {[%emt 0:03:26]} 14. b4 {[%emt 0:08:08]} f5 {[%emt 0:07:00]} 15. c5 {[%emt 0:08:28]} dxc5 {[%emt 0:06:53]} 16. bxc5 {[%emt 0:02:59]} e4 {[%emt 0:05:18]} 17. Ng5 {[%emt 0:13:21]} hxg5 {[%emt 0:04:23]} 18. d6 {[%emt 0:00:34]} Nc6 {[%emt 0:03:36]} 19. Bc4+ {[%emt 0:05:57]} Kh7 {[%emt 0:01:03]} 20. Nd5 {[%emt 0:01:16]} Nde5 {[%emt 0:05:43]} 21. Ne7 {[%emt 0:09:19]} f4 {[%emt 0:03:58]} 22. Nxc8 {[%emt 0:04:40]} Nxc4 {[%emt 0:01:03]} 23. Rh3+ {[%emt 0:01:40]} Bh6 {[%emt 0:00:11]} 24. Ne7 {[%emt 0:02:02]} Nxe7 {[%emt 0:01:37]} 25. dxe7 {[%emt 0:00:01]} Qxe7 {[%emt 0:00:20]} 26. Qd4 {[%emt 0:02:40]} Nxa5 {[%emt 0:01:53]} 27. Re1 {[%emt 0:04:11]} Rad8 {[%emt 0:01:23]} 28. Qc3 {[%emt 0:02:25]} Nc6 {[%emt 0:00:08]} 29. Bb2 {[%emt 0:03:06]} g4 {[%emt 0:01:20]} 30. Rxe4 {[%emt 0:00:24]} Rd1+ {[%emt 0:00:11]} 0-1

[Event "XIII Mediterranean Championship 2023"]
[Site "Castell-Platja d Aro"]
[Date "2023.11.07"]
[Round "5.14"]
[White "Martinez Pla, Xavier"]
[Black "Pham Guerrero, Sergi"]
[Result "0-1"]
[ECO "B72"]
[WhiteElo "2263"]
[BlackElo "2072"]
[Annotator "RC"]
[PlyCount "60"]
[EventDate "2023.10.26"]
[EventType "swiss"]
[EventCountry "ESP"]
[SourceTitle "playchess.com"]
[Source "ChessBase"]
[SourceQuality "1"]
[TimeControl "5400+30"]

1. e4 {[%emt 0:00:03]} c5 {[%emt 0:00:24]} 2. Nf3 {[%emt 0:00:06]} d6 {[%emt 0:00:06]} 3. d4 {[%emt 0:00:04]} cxd4 {[%emt 0:00:07]} 4. Nxd4 {[%emt 0:00:05]} Nf6 {[%emt 0:00:07]} 5. Nc3 {[%emt 0:00:04]} g6 {[%emt 0:00:09]} 6. Be3 {[%emt 0:00:05]} Nc6 {[%emt 0:00:26]} 7. f3 {[%emt 0:02:19]} h5 {[%emt 0:00:32]} 8. Qd2 {[%emt 0:01:54]} Nxd4 {[%emt 0:00:23]} 9. Bxd4 {[%emt 0:01:07]} Bh6 {[%emt 0:00:29]} 10. Be3 {[%emt 0:02:07]} Bxe3 {[%emt 0:01:35]} 11. Qxe3 {[%emt 0:00:17]} Qa5 {[%emt 0:00:45]} 12. Bc4 {[%emt 0:03:21]} Bd7 {[%emt 0:00:59]} 13. Bb3 {[%emt 0:03:27]} Rc8 {[%emt 0:00:48]} 14. O-O-O {[%emt 0:02:39]} Qc5 {[%emt 0:01:46]} 15. Qd2 {[%emt 0:25:50]} b5 {[%emt 0:04:22]} 16. e5 {[%emt 0:07:49]} Qxe5 {[%emt 0:13:07]} 17. Rhe1 {[%emt 0:01:40]} Qxh2 {[%emt 0:02:54]} 18. Qg5 {[%emt 0:04:01]} Kf8 {[%emt 0:03:51]} 19. Rxe7 {[%emt 0:23:14]} Kxe7 {[%emt 0:02:44]} 20. Nd5+ {[%emt 0:07:09]} Kf8 {[%emt 0:00:14]} 21. Nxf6 {[%emt 0:00:26]} Bf5 {[%emt 0:08:37]} 22. Re1 {[%emt 0:01:52]} Kg7 {[%emt 0:07:16]} 23. Nd5 {[%emt 0:01:18]} Rhe8 {[%emt 0:05:45]} 24. Ne7 {[%emt 0:06:36]} Rc5 {[%emt 0:02:58]} 25. Qd2 {[%emt 0:01:28]} Kh7 {[%emt 0:06:29]} 26. Bxf7 {[%emt 0:03:13]} Rxe7 {[%emt 0:04:36]} 27. Rxe7 {[%emt 0:00:27]} Rxc2+ {[%emt 0:00:55]} 28. Qxc2 {[%emt 0:00:04]} Bxc2 {[%emt 0:00:07]} 29. Bb3+ {[%emt 0:00:11]} Kh6 {[%emt 0:00:39]} 30. Bxc2 {[%emt 0:00:12]} Qg1+ {[%emt 0:32:20]} 0-1

[Event "XIII Mediterranean Championship 2023"]
[Site "Castell-Platja d Aro"]
[Date "2023.11.07"]
[Round "5.15"]
[White "Martin Barcelo, Carles"]
[Black "Garcia Paolicchi, Raul"]
[Result "1-0"]
[ECO "B07"]
[WhiteElo "2242"]
[BlackElo "2051"]
[Annotator "RC"]
[PlyCount "75"]
[EventDate "2023.10.26"]
[EventType "swiss"]
[EventCountry "ESP"]
[SourceTitle "playchess.com"]
[Source "ChessBase"]
[SourceQuality "1"]
[TimeControl "5400+30"]

1. e4 {[%emt 0:00:05]} d6 {[%emt 0:00:11]} 2. d4 {[%emt 0:00:16]} Nf6 {[%emt 0:00:07]} 3. Nc3 {[%emt 0:00:28]} e5 {[%emt 0:00:16]} 4. Nge2 {[%emt 0:00:33]} Be7 {[%emt 0:00:42]} 5. h3 {[%emt 0:00:42]} O-O {[%emt 0:01:02]} 6. g4 {[%emt 0:00:12]} c6 {[%emt 0:01:44]} 7. Bg2 {[%emt 0:00:25]} Nbd7 {[%emt 0:01:15]} 8. a4 {[%emt 0:00:25]} Re8 {[%emt 0:01:23]} 9. g5 {[%emt 0:00:06]} Nh5 {[%emt 0:01:01]} 10. Bf3 {[%emt 0:00:07]} Nf4 {[%emt 0:00:37]} 11. Nxf4 {[%emt 0:00:21]} exf4 {[%emt 0:00:07]} 12. h4 {[%emt 0:00:06]} Qb6 {[%emt 0:01:28]} 13. a5 {[%emt 0:01:58]} Qd8 {[%emt 0:02:36]} 14. Bxf4 {[%emt 0:01:56]} f5 {[%emt 0:01:04]} 15. O-O {[%emt 0:04:03]} Nf8 {[%emt 0:06:09]} 16. Bg3 {[%emt 0:07:09]} fxe4 {[%emt 0:06:23]} 17. Nxe4 {[%emt 0:00:29]} d5 {[%emt 0:01:08]} 18. Nc5 {[%emt 0:00:57]} Bd6 {[%emt 0:03:47]} 19. Re1 {[%emt 0:07:04]} Bxg3 {[%emt 0:05:21]} 20. fxg3 {[%emt 0:00:14]} Rxe1+ {[%emt 0:00:48]} 21. Qxe1 {[%emt 0:00:05]} Qc7 {[%emt 0:00:48]} 22. Ra3 {[%emt 0:22:30]} Rb8 {[%emt 0:09:52]} 23. Re3 {[%emt 0:02:29]} b6 {[%emt 0:03:40]} 24. axb6 {[%emt 0:00:16]} axb6 {[%emt 0:00:08]} 25. Nd3 {[%emt 0:01:37]} Bf5 {[%emt 0:02:41]} 26. Re7 {[%emt 0:13:23]} Qd6 {[%emt 0:01:43]} 27. Qe5 {[%emt 0:00:06]} Qxe5 {[%emt 0:00:06]} 28. Nxe5 {[%emt 0:00:05]} Rc8 {[%emt 0:05:53]} 29. Nxc6 {[%emt 0:02:01]} Rxc6 {[%emt 0:00:06]} 30. Bxd5+ {[%emt 0:00:05]} Re6 {[%emt 0:00:05]} 31. c4 {[%emt 0:04:11]} Kh8 {[%emt 0:01:08]} 32. Bxe6 {[%emt 0:01:07]} Bxe6 {[%emt 0:00:09]} 33. d5 {[%emt 0:00:05]} Bd7 {[%emt 0:00:05]} 34. b4 {[%emt 0:00:15]} Ba4 {[%emt 0:02:06]} 35. c5 {[%emt 0:06:43]} bxc5 {[%emt 0:00:51]} 36. bxc5 {[%emt 0:00:06]} Kg8 {[%emt 0:00:11]} 37. c6 {[%emt 0:00:23]} Ng6 {[%emt 0:00:19]} 38. Ra7 {[%emt 0:00:19]} 1-0